[Event "FIDE Online Olympiad Div 2 Pool A 2020"]
[Site "Online"]
[Date "2020.08.16"]
[Round "9"]
[White "Osmanodja, Filiz"]
[Black "Salimova, Nurgyul"]
[Result "0-1"]
[ECO "B15"]
[WhiteElo "2131"]
[BlackElo "2244"]
[Annotator "broadcasts"]
[PlyCount "66"]
[EventDate "2020.08.14"]
[EventType "team-tourn"]
[TimeControl "900+5"]

1. e4 {[%emt 0:00:08]} c6 {[%emt 0:00:02]} 2. d4 {[%emt 0:00:04]} d5 {[%emt 0:00:01]} 3. Nc3 {[%emt 0:00:00]} dxe4 {[%emt 0:00:01]} 4. Nxe4 {[%emt 0:00:00]} Nf6 {[%emt 0:00:01]} 5. Nxf6+ {[%emt 0:00:06]} exf6 {[%emt 0:00:01]} 6. Nf3 {[%emt 0:00:06]} Bd6 {[%emt 0:00:01]} 7. h3 {[%emt 0:00:12]} O-O {[%emt 0:00:02]} 8. Bd3 {[%emt 0:00:13]} Re8+ {[%emt 0:00:05]} 9. Be3 {[%emt 0:00:37]} Nd7 {[%emt 0:00:01]} 10. Qd2 {[%emt 0:00:13]} Nf8 {[%emt 0:00:12]} 11. O-O-O {[%emt 0:00:21]} Be6 {[%emt 0:00:05]} 12. Kb1 {[%emt 0:00:03]} b5 {[%emt 0:00:17]} 13. Nh4 {[%emt 0:00:19]} g6 {[%emt 0:00:32]} 14. f4 {[%emt 0:00:34]} f5 {[%emt 0:00:20]} 15. Nf3 {[%emt 0:00:19]} Bd5 {[%emt 0:00:07]} 16. Rhf1 {[%emt 0:02:08]} Qe7 {[%emt 0:03:17]} 17. Rde1 {[%emt 0:01:41]} Ne6 {[%emt 0:00:11]} 18. g4 {[%emt 0:01:03]} fxg4 {[%emt 0:00:22]} 19. Ne5 {[%emt 0:03:16]} gxh3 {[%emt 0:05:02]} 20. f5 {[%emt 0:00:03]} Nf8 {[%emt 0:00:01]} 21. f6 {[%emt 0:01:14]} Qc7 {[%emt 0:00:37]} 22. Bg1 {[%emt 0:00:40]} Bxe5 {[%emt 0:01:27]} 23. dxe5 {[%emt 0:00:19]} Rxe5 {[%emt 0:00:03]} 24. Bh2 {[%emt 0:01:09]} Rxe1+ {[%emt 0:00:04]} 25. Rxe1 {[%emt 0:00:00]} Qd7 {[%emt 0:00:28]} 26. Qh6 {[%emt 0:01:27]} Ne6 {[%emt 0:00:03]} 27. Re3 {[%emt 0:00:33]} Bg2 {[%emt 0:00:28]} 28. Rg3 {[%emt 0:00:12]} Qd4 {[%emt 0:00:28]} 29. Re3 {[%emt 0:00:14]} Qxf6 {[%emt 0:00:21]} 30. Be5 {[%emt 0:00:01]} Qf2 {[%emt 0:00:01]} 31. Bc3 {[%emt 0:00:05]} Qf4 {[%emt 0:00:34]} 32. Qxf4 {[%emt 0:00:11]} Nxf4 {[%emt 0:00:01]} 33. Be4 {[%emt 0:00:07]} Re8 {[%emt 0:00:08]} 0-1

[Event "FIDE Online Olympiad Div 2 Pool A 2020"]
[Site "Online"]
[Date "2020.08.16"]
[Round "9"]
[White "Yordanov, Lachezar"]
[Black "Vogel, Roven"]
[Result "1-0"]
[ECO "D85"]
[WhiteElo "2005"]
[BlackElo "1932"]
[Annotator "broadcasts"]
[PlyCount "45"]
[EventDate "2020.08.14"]
[EventType "team-tourn"]
[TimeControl "900+5"]

1. d4 {[%emt 0:00:01]} Nf6 {[%emt 0:00:05]} 2. c4 {[%emt 0:00:03]} g6 {[%emt 0:00:01]} 3. Nc3 {[%emt 0:00:01]} d5 {[%emt 0:00:02]} 4. cxd5 {[%emt 0:00:03]} Nxd5 {[%emt 0:00:00]} 5. e4 {[%emt 0:00:01]} Nxc3 {[%emt 0:00:01]} 6. bxc3 {[%emt 0:00:00]} Bg7 {[%emt 0:00:00]} 7. Nf3 {[%emt 0:00:01]} c5 {[%emt 0:00:01]} 8. Bb5+ {[%emt 0:00:01]} Nc6 {[%emt 0:00:02]} 9. Rb1 {[%emt 0:00:09]} O-O {[%emt 0:02:23]} 10. d5 {[%emt 0:00:10]} Na5 {[%emt 0:00:19]} 11. O-O {[%emt 0:00:04]} e5 {[%emt 0:01:45]} 12. Bg5 {[%emt 0:00:57]} Qd6 {[%emt 0:00:09]} 13. Nd2 {[%emt 0:00:14]} f5 {[%emt 0:01:27]} 14. f3 {[%emt 0:00:28]} a6 {[%emt 0:00:53]} 15. Be2 {[%emt 0:00:09]} Bd7 {[%emt 0:00:04]} 16. Nc4 {[%emt 0:00:42]} Nxc4 {[%emt 0:00:04]} 17. Bxc4 {[%emt 0:00:01]} fxe4 {[%emt 0:02:14]} 18. Be7 {[%emt 0:00:19]} Qxe7 {[%emt 0:01:04]} 19. d6+ {[%emt 0:00:02]} Qe6 {[%emt 0:00:00]} 20. Bxe6+ {[%emt 0:00:01]} Bxe6 {[%emt 0:00:00]} 21. Rxb7 {[%emt 0:00:32]} exf3 {[%emt 0:00:02]} 22. Rxf3 {[%emt 0:00:07]} Rxf3 {[%emt 0:00:31]} 23. gxf3 {[%emt 0:00:35]} 1-0